bitfinex/quotes_ETHUSD_20250724
["timestamp","ask_amount","ask_price","bid_price","bid_amount"]
[1753377097218,2.69520523,3710.3,3709.9,4.317]
[1753377097422,2.69534513,3710.1,3709.9,4.317]
[1753377097605,2.69529962,3710.2,3709.9,4.317]
[1753377097803,3.0,3710.2,3709.9,4.317]
[1753377098020,2.69521478,3710.3,3709.9,4.317]
[1753377098207,3.0,3710.2,3709.9,4.317]
[1753377098509,2.69527658,3710.2,3709.9,4.317]
[1753377098708,5.69519622,3710.4,3709.9,4.317]
[1753377098903,5.69513005,3710.4,3709.9,4.317]
[1753377099116,6.16983005,3710.4,3709.9,4.317]
[1753377099294,6.16983005,3710.4,3709.9,4.7705]
[1753377099295,5.69513005,3710.4,3709.9,4.7705]
[1753377099495,5.69513005,3710.4,3709.9,5.59862633]
[1753377099696,5.69513444,3710.4,3709.9,5.59862633]
[1753377100031,3.0,3710.2,3709.9,5.59862633]
[1753377100200,2.69535779,3710.1,3709.9,4.317]
[1753377100395,3.17006518,3710.1,3709.9,4.317]
[1753377100597,0.9418,3710.0,3709.3,0.7767]
[1753377100812,3.16253782,3710.0,3709.4,7.01184638]
[1753377101137,2.69502213,3710.6,3709.6,0.7767]
[1753377101138,3.0,3710.3,3709.6,0.7767]
[1753377101305,0.002,3711.4,3709.7,1.58777213]
[1753377101503,0.002,3711.4,3710.3,0.7767]
[1753377101755,3.0,3711.1,3710.4,4.34295127]
[1753377102053,0.002,3711.4,3710.6,2.69491515]
[1753377102253,0.002,3711.4,3710.8,3.24483669]
[1753377102418,0.002,3711.4,3710.8,8.29772678]
[1753377102601,0.002,3711.4,3710.8,8.88642678]
[1753377104214,0.002,3711.4,3710.8,9.06412678]
[1753377104420,0.002,3711.4,3710.8,9.65202678]
[1753377104839,0.002,3711.4,3710.8,9.78722678]
[1753377106229,0.002,3711.4,3710.8,9.67252678]
[1753377107315,0.002,3711.4,3710.8,9.80772678]
[1753377108925,0.002,3711.4,3710.8,13.32672678]
[1753377109129,0.002,3711.4,3711.3,4.06217363]
[1753377109313,0.002,3711.4,3711.3,9.21319173]
[1753377109643,0.002,3711.4,3711.3,9.797447]
[1753377109842,0.002,3711.4,3711.3,5.348247]
[1753377110008,0.002,3711.4,3711.3,9.68919173]
[1753377110209,0.002,3711.4,3711.3,9.797447]
[1753377110519,0.002,3711.4,3711.3,9.662247]
[1753377111445,0.002,3711.4,3711.3,9.797447]
[1753377111610,0.002,3711.4,3711.3,12.797447]
[1753377113143,0.002,3711.4,3711.3,9.661247]
[1753377113816,0.002,3711.4,3711.3,9.796447]
[1753377114941,0.002,3711.4,3711.3,9.795447]
[1753377115525,0.002,3711.4,3711.3,5.483447]
[1753377115829,0.002,3711.4,3711.3,5.37519173]
[1753377116155,0.002,3711.4,3711.3,9.68719173]
[1753377116446,0.002,3711.4,3711.3,9.795447]
[1753377116948,0.002,3711.4,3711.3,9.660247]
[1753377118413,0.002,3711.4,3711.3,8.633247]
[1753377118613,0.002,3711.4,3711.3,9.109247]
[1753377118845,0.002,3711.4,3711.3,9.183247]
[1753377119045,0.002,3711.4,3711.3,9.794447]
[1753377120460,1e-08,3711.7,3711.5,3.24432843]
[1753377120759,1e-08,3711.7,3711.6,11.01423463]
[1753377120919,1e-08,3711.7,3711.6,11.73289208]
[1753377121329,1e-08,3711.7,3711.6,17.16893408]
[1753377121528,1e-08,3711.7,3711.6,16.03289208]
[1753377122980,0.5559,3715.2,3713.0,0.7717]
[1753377123126,0.4554,3714.8,3713.1,11.89693167]
[1753377123330,0.4587,3714.5,3714.1,0.1344]
[1753377123538,2.69636982,3714.2,3714.1,0.1344]
[1753377123743,2.69636982,3714.2,3714.1,4.4444]
[1753377124156,3.61046982,3714.2,3714.1,4.4444]
[1753377124483,3.61046982,3714.2,3714.1,4.31]
[1753377125839,6.61046982,3714.2,3714.1,4.31]
[1753377126253,2.69271279,3713.8,3713.2,0.02693094]
[1753377126488,0.9141,3714.1,3713.3,4.309]
[1753377126632,2.69274469,3713.7,3713.4,0.02692949]
[1753377126981,2.69274469,3713.7,3713.3,4.309]
[1753377126982,2.6925873,3713.9,3713.8,0.1344]
[1753377127169,2.69283296,3713.6,3713.3,0.02693022]
[1753377127370,2.69283296,3713.6,3713.1,7.009]
[1753377127371,0.4554,3713.8,3713.2,0.02693094]
[1753377127568,0.4554,3713.8,3713.6,0.1344]
[1753377127569,2.69273231,3713.7,3713.6,0.1344]
[1753377127861,2.69273231,3713.7,3713.1,7.009]
[1753377127862,2.6930949,3713.2,3713.1,7.009]
[1753377128049,2.6930949,3713.2,3713.1,11.318]
[1753377128251,3.6071949,3713.2,3713.1,11.318]
[1753377129626,3.6071949,3713.2,3713.1,7.009]
[1753377129831,3.6071949,3713.2,3713.1,11.318]
[1753377131395,0.9141,3713.2,3713.1,11.318]
[1753377131562,2.69273883,3713.7,3713.1,13.23554]
[1753377131759,2.59281292,3713.6,3713.1,13.23554]
[1753377132150,2.59281292,3713.6,3713.5,0.1344]
[1753377132362,3.04821292,3713.6,3713.5,4.4424]
[1753377132770,3.50691292,3713.6,3713.5,4.4424]
[1753377133159,0.4554,3713.6,3713.5,4.4424]
[1753377133364,0.4554,3714.0,3713.5,4.4424]
[1753377133588,2.69267162,3713.8,3713.5,4.4424]
[1753377133789,2.69273984,3713.7,3713.5,4.4424]
[1753377133954,3.14813984,3713.7,3713.5,4.4424]
[1753377134157,0.4554,3713.7,3713.5,4.4424]
[1753377134555,2.69269593,3713.8,3713.5,4.4424]
[1753377134860,0.004,3714.2,3713.6,0.77952804]
[1753377135068,0.004,3714.2,3713.7,4.4424]
[1753377135279,0.004,3714.2,3714.1,0.1344]
[1753377135484,0.004,3714.2,3714.1,4.4424]
[1753377135790,0.004,3714.2,3714.1,7.13484231]
[1753377136090,0.004,3714.2,3714.1,4.4424]
[1753377137065,0.004,3714.2,3714.1,7.89024231]
[1753377137267,0.004,3714.2,3714.1,8.67926654]
[1753377137502,0.004,3714.2,3714.1,9.29986654]
[1753377137711,0.004,3714.2,3714.1,9.16546654]
[1753377138189,0.002,3715.0,3714.1,5.71762423]
[1753377138390,0.002,3715.0,3714.2,0.81922369]
[1753377138703,0.4491,3714.9,3714.3,4.307]
[1753377138903,0.002,3715.0,3714.5,2.69209487]
[1753377139102,0.002,3715.0,3714.6,4.307]
[1753377139306,2.69379355,3715.0,3714.6,4.307]
[1753377139502,0.4511,3715.0,3714.6,4.307]
[1753377139805,2.69191258,3714.9,3714.6,4.307]
[1753377139986,3.63543496,3714.8,3714.7,4.307]
[1753377140309,0.9435,3714.8,3714.7,4.307]
[1753377140617,3.63543496,3714.8,3714.7,4.307]
[1753377140781,0.9435,3714.8,3714.7,4.307]
[1753377140985,0.002,3715.0,3714.7,4.307]
[1753377141190,2.69379013,3715.0,3714.7,4.307]
[1753377141514,0.4511,3715.0,3714.7,4.307]
[1753377141714,0.002,3715.0,3714.7,4.307]
[1753377142010,0.4491,3714.9,3714.8,2.69193496]
[1753377142173,0.002,3715.0,3714.8,2.7188543]
[1753377142477,0.002,3715.0,3714.7,4.307]
[1753377142699,0.4511,3715.0,3714.8,0.02691934]
[1753377142885,0.002,3715.0,3714.8,0.02691934]
[1753377143086,0.4511,3715.0,3714.9,7.004]
[1753377143371,0.002,3715.0,3714.9,10.82696249]
[1753377144368,0.002,3715.0,3714.9,12.12956249]
[1753377145214,0.002,3715.0,3714.9,12.26476249]
[1753377145513,0.002,3715.0,3714.9,12.12956249]
[1753377145716,0.002,3715.0,3714.9,16.43456249]
[1753377147085,0.002,3715.0,3714.9,15.94916249]
[1753377147481,0.002,3715.0,3714.9,16.43456249]
[1753377147720,0.002,3715.0,3714.9,16.56896249]
[1753377148713,0.002,3715.0,3714.9,16.70416249]
[1753377148919,0.002,3715.0,3714.9,16.08356249]
[1753377149639,0.002,3715.0,3714.9,16.70416249]
[1753377149989,0.002,3715.0,3714.9,17.25416249]
[1753377150428,0.002,3715.0,3714.9,16.08356249]
[1753377150729,0.002,3715.0,3714.9,16.56896249]
[1753377150927,0.002,3715.8,3715.7,2.69128293]
[1753377151118,0.002,3715.8,3715.7,8.06611122]
[1753377151429,0.4491,3716.5,3716.2,2.69090833]
[1753377151633,0.4491,3716.5,3716.3,6.99477995]
[1753377151836,0.5559,3716.8,3716.4,4.4384]
[1753377152130,2.69020678,3717.2,3715.7,3.76210926]
[1753377152131,0.4944,3717.5,3716.5,0.83010703]
[1753377152336,0.3944,3717.5,3717.1,2.69021765]
[1753377152497,3.24560495,3717.9,3717.2,0.26902177]
[1753377152498,0.4491,3717.4,3717.2,0.26902177]
[1753377152710,2.69012455,3717.3,3717.2,0.26902177]
[1753377152910,2.68997927,3717.6,3717.2,4.304]
[1753377153231,0.4491,3717.5,3717.3,4.304]
[1753377153400,2.68976698,3717.8,3717.4,4.304]
[1753377153795,3.24560779,3717.9,3717.4,4.304]
[1753377154007,3.13887347,3717.8,3717.4,4.304]
[1753377154210,0.4491,3717.7,3717.4,4.7370902]
[1753377154408,0.4491,3717.6,3717.4,4.7370902]
[1753377154608,0.4491,3718.0,3717.5,0.02689979]
[1753377154811,0.5559,3718.3,3716.9,3.50560365]
[1753377154812,0.9435,3717.9,3716.9,3.50560365]
[1753377154999,3.63326276,3717.8,3717.0,4.33090341]
[1753377155336,2.68999456,3717.5,3717.1,4.83166567]
[1753377155530,0.9435,3717.4,3717.1,4.83166567]
[1753377155840,0.9435,3717.4,3717.2,4.303]
[1753377156011,2.69012455,3717.3,3717.2,4.303]
[1753377156332,0.9435,3717.3,3717.2,4.303]
[1753377156532,3.63362455,3717.3,3717.2,4.303]
[1753377156697,2.69041405,3716.9,3716.8,0.14055325]
[1753377156898,2.69041405,3716.9,3716.8,4.44355325]
[1753377156899,3.24631405,3716.9,3716.8,4.44355325]
[1753377157101,4.18981405,3716.9,3716.8,4.44355325]
[1753377157731,4.18981405,3716.9,3716.8,4.303]
[1753377158041,4.18981405,3716.9,3715.1,7.8008]
[1753377158042,2.69071677,3716.5,3715.1,7.8008]
[1753377158210,2.69071677,3716.5,3715.1,7.001]
[1753377158211,2.69164513,3715.2,3715.1,7.001]
[1753377158539,0.4944,3715.2,3715.1,11.303]
[1753377158741,3.69615916,3715.9,3715.2,2.6915894]
[1753377158925,0.4491,3716.3,3715.5,0.8053]
[1753377159127,0.4491,3716.3,3715.6,4.302]
[1753377159128,2.6910511,3716.1,3715.6,4.302]
[1753377159319,0.4491,3716.0,3715.7,4.302]
[1753377159639,0.4491,3716.0,3715.7,5.08456546]
[1753377159946,3.18553808,3715.9,3715.8,4.302]
[1753377160145,0.4944,3715.9,3715.8,4.302]
[1753377160309,3.18553808,3715.9,3715.8,4.302]
[1753377160516,0.5559,3716.4,3715.8,4.302]
[1753377160710,2.69108728,3716.0,3715.8,4.302]
[1753377160906,2.69113808,3715.9,3715.8,4.302]
[1753377161241,3.18553808,3715.9,3715.8,4.302]
[1753377163126,2.69107967,3716.0,3715.8,4.302]
[1753377163451,3.18553808,3715.9,3715.8,4.302]
[1753377163813,3.18553808,3715.9,3715.8,4.4364]
[1753377164415,0.5559,3715.6,3715.1,7.81421]
[1753377164615,0.4944,3715.5,3715.4,0.1344]
[1753377164819,3.18587438,3715.5,3715.4,0.1344]
[1753377165049,3.18587438,3715.5,3715.2,4.302]
[1753377165050,2.69157268,3715.3,3715.2,4.302]
[1753377165250,3.18597268,3715.3,3715.2,4.4364]
[1753377165826,3.18597268,3715.3,3715.2,4.302]
[1753377168853,2.69157268,3715.3,3715.2,4.302]
[1753377169155,0.1344,3715.4,3715.2,4.302]
[1753377169328,0.4596,3715.9,3715.2,5.39596243]
[1753377170831,3.15088293,3715.7,3715.6,4.302]
[1753377171352,0.1344,3716.0,3715.6,4.302]
[1753377171555,1.0155,3716.4,3715.6,4.302]
[1753377171556,3.0,3716.1,3715.9,0.1344]
[1753377171741,3.0,3716.1,3716.0,4.302]
[1753377172042,6.15059324,3716.1,3716.0,4.302]
[1753377172969,3.84094666,3716.1,3716.0,4.302]
[1753377173475,2.69164513,3715.2,3715.1,7.1354]
[1753377173631,3.15124513,3715.2,3715.1,11.4374]
[1753377173839,0.4596,3715.2,3715.1,11.4374]
[1753377174039,3.15124513,3715.2,3715.1,11.4374]
[1753377174556,3.15124513,3715.2,3715.1,11.303]
[1753377180485,2.69164513,3715.2,3715.1,11.303]
[1753377180989,2.6914115,3715.6,3715.1,13.27404]
[1753377181185,2.69142791,3715.5,3715.1,13.40844]
[1753377181492,2.69135536,3715.6,3715.1,12.58124]
[1753377181651,0.1344,3715.7,3715.1,7.1354]
[1753377181849,0.5559,3715.4,3715.2,4.301]
[1753377182157,2.69159146,3715.3,3715.2,4.301]
[1753377183476,3.15124513,3715.2,3715.1,7.001]
[1753377183680,2.69179004,3715.0,3714.9,0.001]
[1753377183878,5.82619004,3715.0,3714.9,0.001]
[1753377184068,6.38209004,3715.0,3714.9,0.001]
[1753377184268,6.93209004,3715.0,3714.9,0.001]
[1753377184968,6.38209004,3715.0,3714.9,0.001]
[1753377185365,5.69179004,3715.0,3714.9,0.001]
[1753377186472,6.24769004,3715.0,3714.9,0.001]
[1753377186674,6.79769004,3715.0,3714.9,0.001]
[1753377186870,7.25729004,3715.0,3714.9,0.001]
[1753377187171,7.69059004,3715.0,3714.9,1e-08]
[1753377189580,11.99159004,3715.0,3714.9,1e-08]
[1753377192298,7.14059004,3715.0,3714.9,1e-08]
[1753377192498,0.5559,3715.4,3714.9,1e-08]
[1753377192703,2.69168968,3715.2,3714.9,4.30100001]
[1753377192918,0.5559,3715.8,3715.0,0.9303179]
[1753377193132,2.6914053,3715.6,3715.1,0.02691717]
[1753377193428,3.1247053,3715.6,3715.0,0.4301]
[1753377193705,2.69171758,3715.1,3714.9,4.30100001]
[1753377194298,3.58431694,3715.6,3714.9,6.99283876]
[1753377194498,3.2468399,3716.2,3715.2,2.69162703]
[1753377194499,2.69100442,3716.1,3715.2,2.69162703]
[1753377194808,2.69074725,3716.5,3715.4,0.7649]
[1753377194990,0.8929,3716.6,3715.5,4.7743]
[1753377195193,2.69049533,3716.8,3715.6,1.02722]
[1753377195393,3.83464494,3717.0,3715.7,0.65871282]
[1753377195600,2.69056923,3716.7,3716.0,2.69104395]
[1753377195813,3.58325819,3717.0,3716.1,4.32690993]
[1753377195814,0.8929,3717.0,3716.1,4.32690993]
[1753377195983,2.69041432,3716.9,3716.3,2.69078777]
[1753377196188,2.69041432,3716.9,3716.2,3.48130949]
[1753377196520,2.69049026,3716.8,3716.2,1.8872964]
[1753377196722,2.69034359,3717.0,3716.3,2.69078835]
[1753377196889,2.69042277,3716.9,3716.3,0.02690848]
[1753377197072,2.69048934,3716.8,3716.2,1.8872964]
[1753377197272,2.69058325,3716.7,3716.2,1.8872964]
[1753377197518,2.69041949,3716.9,3716.2,0.7904]
[1753377197716,2.69077757,3716.4,3716.3,4.3]
[1753377198075,0.9432,3716.4,3716.3,4.3]
[1753377198305,3.6340358,3716.4,3716.3,4.3]
[1753377198474,0.9432,3716.4,3716.3,4.3]
[1753377198684,3.14527601,3716.4,3716.3,4.3]
[1753377198887,2.69077601,3716.4,3716.3,4.3]
[1753377199491,3.0,3717.3,3716.3,4.3]
[1753377199674,2.69065129,3716.6,3716.3,4.4344]
[1753377199877,2.69077601,3716.4,3716.3,4.4344]
[1753377202308,3.63397601,3716.4,3716.3,4.3]
[1753377204123,3.63397601,3716.4,3715.3,7.004]
[1753377204280,1.93074413,3718.3,3718.2,2.6894734]
[1753377204475,2.839,3721.6,3718.2,2.6894734]
[1753377204476,0.25140675,3718.7,3718.6,2.6891841]
[1753377204702,4.82686033,3720.4,3718.6,2.6891841]
[1753377204703,0.25140675,3720.1,3719.5,2.68853054]
[1753377204905,0.25140675,3720.6,3719.6,4.45588461]
[1753377205186,0.4545,3720.7,3719.6,4.429]
[1753377205387,3.64706705,3720.6,3719.6,4.429]
[1753377205728,0.9432,3720.5,3719.6,4.427]
[1753377206040,0.4545,3720.4,3719.6,4.427]
[1753377206417,3.0,3720.3,3719.6,4.427]
[1753377206612,0.4545,3720.2,3719.6,4.427]
[1753377207116,0.4887,3720.5,3719.6,4.427]
[1753377207324,0.4545,3720.7,3719.9,2.68824424]
[1753377207616,0.4545,3720.7,3719.6,7.11544739]
[1753377207617,0.4887,3721.1,3720.0,0.02688172]
[1753377207925,0.9432,3721.7,3720.1,0.02688099]
[1753377208112,3.63014536,3721.7,3720.6,2.68772139]
[1753377208287,3.14154314,3721.6,3720.3,4.422]
[1753377208615,3.0,3721.2,3720.2,4.422]
[1753377208822,0.7932,3721.1,3720.2,4.422]
[1753377209316,0.002,3720.4,3720.2,4.422]
[1753377209515,0.002,3720.4,3720.2,7.11001216]
[1753377209936,0.002,3720.4,3720.3,2.68795527]
[1753377210107,0.7786,3722.5,3720.4,2.68788302]
[1753377210306,0.7786,3722.5,3720.5,0.1768781]
[1753377210633,0.4887,3722.4,3720.6,4.431]
[1753377210809,0.4887,3722.4,3721.1,2.68737738]
[1753377211127,2.68623753,3722.7,3721.7,2.68693504]
[1753377211431,2.68641926,3722.5,3721.8,4.43]
[1753377211597,0.9432,3722.6,3721.8,4.43]
[1753377211797,0.4887,3722.6,3721.8,4.43]
[1753377212028,3.17500866,3722.6,3721.8,4.43]
[1753377212325,0.4887,3722.6,3721.8,4.43]
[1753377212537,2.68657754,3722.3,3721.8,4.43]
[1753377213334,3.4887,3722.6,3721.8,4.43]
[1753377213832,2.68673259,3722.0,3721.8,4.43]
[1753377214198,0.4545,3722.4,3721.8,4.43]
[1753377214405,0.1344,3722.0,3721.8,4.43]
[1753377214729,3.62999975,3721.9,3721.8,4.43]
[1753377214922,0.7729,3721.8,3721.4,0.1344]
[1753377215115,0.7729,3721.8,3720.2,0.97981795]
[1753377215116,2.68730342,3721.3,3721.0,0.1344]
[1753377215499,0.1344,3721.5,3721.0,0.1344]
[1753377215809,2.82149448,3721.5,3721.0,0.1344]
[1753377216009,2.68716074,3721.4,3721.0,0.1344]
[1753377216231,0.1344,3721.5,3721.0,0.1344]
[1753377216532,2.68737251,3721.2,3721.0,0.1344]
[1753377216739,2.68749054,3721.0,3720.8,0.1344]
[1753377217035,2.68750178,3721.0,3720.7,4.421]
[1753377217199,2.68766629,3720.7,3720.6,0.1344]
[1753377217400,2.68801171,3720.3,3720.1,0.1344]
[1753377217702,2.68802752,3720.2,3720.1,0.1344]
[1753377217902,0.5889,3720.7,3720.0,6.999]
[1753377217903,2.68809978,3720.1,3720.0,6.999]
[1753377219034,2.68831657,3719.8,3719.7,0.1344]
[1753377219328,0.1344,3720.2,3719.7,4.5594]
[1753377219528,2.68831657,3719.8,3719.7,0.1344]
[1753377219729,2.68838884,3719.7,3719.6,4.424]
[1753377219948,2.68838884,3719.7,3718.8,0.5012]
[1753377219949,2.68877187,3719.2,3718.8,0.5012]
[1753377220116,2.68896716,3718.9,3718.2,3.40753229]
[1753377220319,1.0776,3719.1,3718.6,0.1344]
[1753377220551,2.6891841,3718.6,3718.5,4.425]
[1753377222154,2.68911437,3718.7,3718.5,4.425]
[1753377222351,2.68911437,3718.7,3718.6,0.7181128]
[1753377222529,2.68882027,3719.2,3718.6,4.424]
[1753377222735,0.4887,3719.9,3718.9,0.71201971]
[1753377222922,0.4887,3719.9,3719.0,0.2728482]
[1753377223120,2.6885334,3719.5,3719.1,4.67095926]
[1753377223349,2.68831657,3719.8,3719.1,4.67095926]
[1753377223350,2.68846711,3719.6,3719.2,0.24595926]
[1753377223555,2.68839493,3719.7,3719.3,0.24595926]
[1753377223752,2.6885334,3719.5,3719.4,0.24595926]
[1753377223960,2.68847554,3719.6,3719.4,0.24595926]
[1753377224261,3.0,3720.4,3719.1,5.13701971]
[1753377224262,0.7803,3720.9,3719.5,0.24595926]
[1753377224423,0.7803,3720.9,3719.8,1.21321971]
[1753377224630,0.7803,3720.9,3719.9,0.24595926]
[1753377224631,2.6877712,3720.6,3719.9,0.24595926]
[1753377224886,0.4887,3721.3,3720.4,2.6878286]
[1753377225096,2.68756209,3720.9,3720.5,4.67195926]
[1753377225262,0.4887,3721.3,3720.6,4.67295926]
[1753377225465,0.4301,3721.2,3720.7,0.24576855]
[1753377225676,0.4301,3721.2,3720.8,0.24576855]
[1753377225677,2.68752183,3720.9,3720.8,0.24576855]
[1753377225857,3.58502183,3720.9,3720.8,0.24576855]
[1753377226058,2.68773853,3720.6,3720.5,4.427]
[1753377226301,2.68773853,3720.6,3720.5,0.24583409]
[1753377226302,3.58523853,3720.6,3720.5,0.24583409]
[1753377226500,4.36413853,3720.6,3720.5,0.24583409]
[1753377228757,3.89673853,3720.6,3720.5,0.24583409]
[1753377228984,4.36413853,3720.6,3720.5,0.24583409]
[1753377229399,7.36413853,3720.6,3720.5,0.24583409]
[1753377229565,7.36413853,3720.6,3720.5,1e-08]
[1753377229566,7.91413853,3720.6,3720.5,1e-08]
[1753377229761,2.68837342,3719.8,3718.9,6.994]
[1753377230063,2.68889486,3719.0,3718.9,6.994]
[1753377230286,0.4301,3719.7,3718.9,11.411]
[1753377230478,2.68882733,3719.1,3718.9,11.411]
[1753377230694,3.11899486,3719.0,3718.9,4.417]
[1753377231200,0.7541,3719.5,3718.9,4.417]
[1753377231402,2.68889486,3719.0,3718.9,4.417]
[1753377232403,2.68883003,3719.1,3718.9,4.417]
[1753377232700,2.68889486,3719.0,3718.9,4.417]
[1753377233295,2.82324372,3719.1,3718.9,4.417]
[1753377234189,0.1344,3719.1,3718.9,4.417]
[1753377234394,2.82322346,3719.1,3718.9,4.417]
[1753377234595,0.1344,3719.1,3718.9,4.417]
[1753377234903,2.68889486,3719.0,3718.9,4.417]
[1753377235103,2.68884389,3719.1,3719.0,2.39376027]
[1753377235301,2.68884389,3719.1,3718.9,4.417]
[1753377235611,2.68889486,3719.0,3718.9,4.417]
[1753377236109,3.72079486,3719.0,3718.9,4.417]
[1753377236702,2.68904349,3718.8,3718.2,0.1344]
[1753377236871,2.68904349,3718.8,3717.9,0.5012]
[1753377236872,2.68952543,3718.2,3717.9,0.6356]
[1753377237072,2.68954919,3718.1,3718.0,4.407]
[1753377237396,0.1344,3718.4,3718.0,4.407]
[1753377238107,2.82374451,3718.4,3718.0,4.407]
[1753377238686,2.82374451,3718.4,3718.0,6.79134307]
[1753377238873,2.68945113,3718.3,3718.0,6.79134307]
[1753377239197,2.82374885,3718.4,3718.0,4.407]
[1753377239370,0.1344,3718.4,3718.0,4.407]
[1753377239571,2.82375084,3718.4,3718.0,4.407]
[1753377239770,2.68941422,3718.3,3718.0,4.407]
[1753377239978,0.1344,3718.4,3718.0,7.09661689]
[1753377240300,3.49897732,3719.2,3718.0,7.09661689]
[1753377240301,3.0,3719.3,3718.3,2.68940083]
[1753377240509,2.68911328,3718.7,3718.4,4.9012]
[1753377240694,0.1344,3718.8,3718.4,4.9012]
[1753377240885,2.82350866,3718.8,3718.4,4.9012]
[1753377241088,0.1344,3718.8,3718.4,4.4]
[1753377241305,2.68923354,3718.6,3718.4,4.4]
[1753377241508,3.25355817,3718.8,3718.4,4.4]
[1753377241509,0.1344,3718.8,3718.4,4.4]
[1753377241807,0.1344,3718.9,3718.4,4.85344]
[1753377242108,3.7877,3719.6,3718.4,4.85344]
[1753377242109,2.6889482,3719.0,3718.6,0.1344]
[1753377242499,2.68890665,3719.0,3718.6,0.1344]
[1753377242696,0.4301,3718.9,3718.4,4.4]
[1753377242927,0.1344,3719.0,3718.5,0.1344]
[1753377243209,0.1344,3718.6,3718.2,4.398]
[1753377243377,2.82380107,3718.3,3718.2,4.398]
[1753377243808,3.25390107,3718.3,3718.2,4.398]
[1753377244011,3.72130107,3718.3,3718.2,4.398]
[1753377244212,2.68971194,3717.9,3717.8,4.398]
[1753377244482,0.1344,3718.0,3717.8,4.398]
[1753377245013,2.68969041,3717.9,3717.8,4.398]
[1753377245216,0.1344,3718.0,3717.8,4.398]
[1753377245607,3.58690563,3718.3,3717.8,4.398]
[1753377245608,2.68945042,3718.3,3717.8,4.398]
[1753377245788,2.68945042,3718.3,3717.9,0.1344]
[1753377245981,0.1344,3718.4,3717.9,0.1344]
[1753377246321,2.68954573,3718.1,3718.0,4.394]
[1753377246630,2.68997982,3717.5,3717.4,4.395]
[1753377246783,3.58747982,3717.5,3717.4,0.001]
[1753377246981,3.72187982,3717.5,3717.4,0.001]
[1753377247433,2.68997982,3717.5,3717.4,0.001]
[1753377247784,3.58747982,3717.5,3717.4,4.396]
[1753377249726,6.58747982,3717.5,3717.4,1e-08]
[1753377249984,0.8975,3717.5,3717.4,1e-08]
[1753377250140,3.15688437,3718.2,3717.4,4.39100001]
[1753377250461,2.6899635,3717.6,3717.4,4.39100001]
[1753377250658,2.82426228,3717.7,3717.4,4.39100001]
[1753377250875,2.68991931,3717.6,3717.4,4.39100001]
[1753377251019,2.68997982,3717.5,3717.4,4.39100001]
[1753377251643,0.4301,3717.5,3717.4,1e-08]
[1753377251840,2.82437982,3717.5,3717.4,4.39300001]
[1753377252047,3.72187982,3717.5,3717.4,4.39300001]
[1753377253233,3.25447982,3717.5,3717.4,4.39300001]
[1753377253848,2.68983421,3717.8,3717.4,4.39300001]
[1753377254052,2.82410715,3717.9,3717.4,4.52740001]
[1753377254347,2.68956254,3718.1,3717.5,0.5012]
[1753377254665,0.1344,3718.2,3717.6,0.1344]
[1753377254885,2.68956419,3718.1,3717.6,0.1344]
[1753377255046,2.68970854,3717.9,3717.6,0.1344]
[1753377255247,2.68975252,3717.9,3717.5,0.5012]
[1753377255568,0.4735,3718.6,3717.8,2.68972735]
[1753377255773,0.1344,3718.2,3717.9,4.386]
[1753377256065,0.1344,3718.4,3717.9,0.1344]
[1753377256270,0.1344,3718.4,3718.0,4.384]
[1753377256471,0.1344,3718.4,3718.0,7.07360691]
[1753377256652,0.1344,3718.4,3718.0,4.384]
[1753377257141,0.002,3719.1,3718.1,4.55789545]
[1753377257341,0.002,3719.1,3718.6,0.1344]
[1753377257565,0.002,3719.1,3719.0,2.68889486]
[1753377257772,0.002,3719.1,3718.8,0.5012]
[1753377257942,3.16244386,3719.0,3718.9,4.381]
[1753377258138,0.1344,3719.0,3718.9,4.381]
[1753377258338,0.1344,3719.0,3718.5,0.1344]
[1753377258667,0.1344,3719.0,3718.9,4.381]
[1753377259638,2.82329486,3719.0,3718.9,4.381]
[1753377259974,2.68897742,3718.9,3718.5,0.1344]
[1753377260170,2.68897742,3718.9,3718.6,4.38]
[1753377260467,2.68927785,3718.5,3718.3,0.5012]
[1753377260641,2.68932874,3718.4,3718.2,0.1344]
[1753377260846,2.68927478,3718.5,3718.3,4.376]
[1753377261245,2.68911561,3718.7,3718.2,0.1344]
[1753377261246,2.68932874,3718.4,3718.2,0.1344]
[1753377261659,3.29694456,3718.8,3718.3,4.374]
[1753377261850,2.68925663,3718.5,3718.3,4.374]
[1753377262255,2.68925663,3718.5,3718.2,0.1344]
[1753377262256,2.82344352,3718.8,3718.2,0.1344]
[1753377262572,2.6891239,3718.7,3718.2,0.1344]
[1753377262770,2.68911178,3718.7,3718.3,4.374]
[1753377263076,2.689116,3718.7,3718.3,4.374]
[1753377263472,0.1344,3718.8,3718.2,0.1344]
[1753377263473,2.68933323,3718.4,3718.2,0.1344]
[1753377263671,2.68930373,3718.5,3718.3,4.373]
[1753377263874,2.68930373,3718.5,3718.2,0.1344]
[1753377264076,2.68935591,3718.4,3718.3,4.373]
[1753377264276,2.68935591,3718.4,3718.0,0.6356]
[1753377264480,2.68935591,3718.4,3718.1,4.371]
[1753377264481,2.68940107,3718.3,3718.1,4.371]
[1753377264681,2.6894734,3718.2,3718.1,4.371]
[1753377265277,2.68954573,3718.1,3717.9,0.1344]
[1753377265473,2.68945678,3718.3,3717.9,0.1344]
[1753377265666,2.68945678,3718.3,3718.0,4.37]
[1753377265865,2.68954573,3718.1,3717.9,0.1344]
[1753377266065,2.68961807,3718.0,3717.9,0.1344]
[1753377266274,2.68956221,3718.1,3717.9,4.5024]
[1753377266644,0.4735,3718.2,3717.9,0.1344]
[1753377266860,2.68954573,3718.1,3718.0,4.366]
[1753377267155,2.68976083,3717.9,3717.8,6.997]
[1753377267353,2.68976083,3717.9,3717.8,11.363]